{"text_format":"2","workbook":"xlsx","n_sheets":10,"sheets":["LÉEME","ENTRADA_Precontrol","ENTRADA_Ajuste de valoración","ENTRADA_Parámetros Geofísicos","ENTRADA_Condiciones de Mercado","SALIDA_Resultados","Calculations","Traducción","Lists","Lists 2"],"not_rendered":{"charts":9,"images":48,"macros":0,"external_links":1,"defined_names":26,"comments":2,"pivot_tables":0},"unopened":[],"bounds":{"document_bytes":16777216,"sheet_cells":100000,"run_cost":"one","rows_first":2000,"rows_last":500,"rows_between":2000,"halvings":0,"cell_chars":16384,"cell_head_chars":4096},"cells_cut":0,"cells_raw":0,"read":"whole","date_system":"1900"}

{"sheet":"LÉEME","index":0,"n_rows":39,"n_cols":3,"rows_kept":39,"cut":false,"hidden":false,"merged":[]}
[]
[null,null,"Léeme"]
[]
[]
[]
[]
[null,null,"MERCADO - Herramienta de Evaluación de Mercado"]
[]
[null,null,"Introducción"]
[null,null,"Esta herramienta complementa el módulo MERCADO en la Caja de herramientas de SPIS. La herramienta sirve para determinar los parámetros geofísicos determinantes para el éxito o fracaso de un SPIS. Si cualquiera de los parámetros obtiene un puntaje de 0, se considera que el área tiene muy poco potencial para SPIS. Un 'sí' de esta evaluación permite la consideración de otros parámetros."]
[]
[null,null,"Consejos & trucos"]
{"$rows_empty":8}
[null,null,"Sinopsis"]
[null,null,"Esta herramienta incluye las siguientes hojas:"]
[null,null,"Entrada_Precontrol: Permite un primer control de aptitud del SPIS para proceder con la evaluación detallada."]
[null,null,"Entrada_Adjuste de valoración: Proporciona una descripción de los parámetros y permite ajustar una valoración del impacto de las condiciones de mercado"]
[null,null,"Entrada_Parámetros Geofísicos: Para definir los parámetros geofísicos en el área de interés"]
[null,null,"Entrada_Condiciones de Mercado: Para definir los parámetros relevantes de negocio importantes para el área objetivo"]
[null,null,"Salida_Resultados: Muestra una descripción gráfica del potencial de mercado de SPIS en un área"]
[null,null,"Traducción: Traducción de términos claves usados en la herramienta"]
[null,null,"Acerca de"]
[null,null,"Publicado por: GIZ & FAO"]
[null,null,"Responsable: Proyecto de la GIZ Sustainable Energy for Food - Powering Agriculture\n                      Rebecca Navarro"]
[null,null,"Contacto: Powering.Agriculture@giz.de"]
[null,null,"Download link: https://energypedia.info/wiki/Toolbox_on_SPIS"]
[null,null,"Acerca de: Powering Agriculture: An Energy Grand Challenge for Development. Disponible en:  https://poweringag.org"]
[null,null,"Versión: 1.0 (Julio 2018)"]
[null,null,"La publicación de la Caja de herramientas de sistemas de riego solar ha sido posible gracias al apoyo brindado por la iniciativa mundial Powering Agriculture: An Energy Grand Challenge for Development (PAEGC) (Energización Rural: Un gran desafío energético para el desarrollo). En 2012, la Agencia de los Estados Unidos para el Desarrollo Internacional (USAID), la Agencia Sueca de Cooperación Internacional para el Desarrollo (Sida), el Ministerio Federal de Cooperación Económica y Desarrollo (BMZ) de Alemania, la empresa de energía Duke Energy Corporation y la Corporación de Inversiones Privadas en el Extranjero (OPIC) juntaron recursos para crear la iniciativa PAEGC. El objetivo de PAEGC es fomentar nuevos enfoques sostenibles con el fin de acelerar el desarrollo y asegurar el establecimiento de energías limpias que incrementen la productividad y/o el valor de la agricultura en países en desarrollo y regiones emergentes sin acceso a fuentes de energía confiables, asequibles y limpias."]
[null,null,"Las denominaciones empleadas y la presentación del material en este producto informativo no implican juicio alguno por parte de la Deutsche Gesellschaft für Internationale Zusammenarbeit (GIZ) GmbH, la Organización de las Naciones Unidas para la Alimentación y la Agricultura (FAO), o los socios fundadores de la iniciativa PAEGC, sobre la condición jurídica o el grado de desarrollo de ninguno de los países, territorios, ciudades o zonas citados o de sus autoridades, ni respecto de la delimitación de sus fronteras o límites. La mención de empresas o productos de fabricantes en particular, estén o no patentados, no implica que la GIZ, la FAO o alguno de los socios fundadores de la iniciativa PAEGC los aprueben o recomienden, dándoles preferencia sobre otros de naturaleza similar que no se mencionan. Las opiniones expresadas en este producto informativo son las de su(s) autor(es) o autora(s), y no reflejan necesariamente los puntos de vista o las políticas de la GIZ, la FAO o ninguno de los socios fundadores de la iniciativa PAEGC."]
[null,null,"La GIZ, la FAO y los socios fundadores de la iniciativa PAEGC fomentan la utilización, la reproducción y la difusión del material presentado en este producto informativo. A menos que se indique lo contrario, el material puede ser copiado, descargado e impreso con fines de estudio privado, enseñanza e investigación científica, o para su utilización en productos o servicios no comerciales, siempre que se otorgue a la GIZ y la FAO el debido reconocimiento como fuentes y como titulares de los derechos de autor."]
[null,null,"© GIZ and FAO, 2018"]

{"sheet":"ENTRADA_Precontrol","index":1,"n_rows":31,"n_cols":21,"rows_kept":31,"cut":false,"hidden":false,"merged":[[13,19,16,19],[15,17,16,17],[15,18,16,18],[3,0,3,15],[7,3,7,11],[8,3,8,11],[15,0,19,0],[16,6,17,6],[16,7,17,7],[16,8,17,8],[16,9,17,9],[16,10,17,10],[1,4,1,10],[2,4,2,12],[18,14,19,14],[15,15,19,15],[9,1,9,8],[5,3,5,11],[6,3,6,11],[15,1,17,1],[16,13,17,13],[16,11,17,11],[16,12,17,12],[16,5,17,5],[21,1,22,15],[12,2,12,13],[13,2,13,13],[10,0,11,0],[10,1,11,13],[16,2,17,2],[16,3,17,3],[16,4,17,4],[16,14,17,14],[14,2,14,13],[15,2,15,13],[20,14,20,15]]}
[]
[{"$nulls":4},"ENTRADA - Precontrol"]
[]
[]
[]
[null,"País:",null," Angola"]
[null,"Área de interés:"]
[null,"Fecha de evaluación:"]
[null,"Nombre del evaluador/a:"]
[]
[1,"Parámetros Geofísicos",{"$nulls":12},"Puntuación máx. posible","Puntuación alcanzada"]
[{"$nulls":14},9,{"$f":"IF(COUNTIF(S14:S17,0)=0,S14+S15+S16,0)","v":7}]
[null,"Preguntas","Fuente de datos de muestra",{"$nulls":11},"Respuesta","Aptitud",null,"Parameter","Score","Raw Score"]
["a)","¿Cuál es la cobertura de terreno predominante en el área?","Cobertura de terreno\n",{"$nulls":11},"Medium forest open to closed (tree cover above 40%)",{"$f":"VLOOKUP(O14,'Lists 2'!A:B,2,0)","v":"Marginally Suitable"},null,"Land Cover",{"$f":"IF(P14=\"Highly Suitable\", \"3\", IF(P14=\"Moderately Suitable\", \"2\", IF(P14=\"Marginally Suitable\", \"1\", \"0\")))","v":"1"},{"$f":"IF(COUNTIF(S14:S17,0)=0,S14+S15+S16,0)","v":7}]
["b)","¿Cuál es la irradiación solar anual promedio (kWh/kW pico - valor PVOUT)?","Mapa solar del Banco Mundial",{"$nulls":11},"Above 1460",{"$f":"IF(O15=\"0 - 948\", \"Not Suitable\", IF(O15=\"949 - 1094\", \"Marginally Suitable\", IF(O15=\"1095 - 1460\", \"Moderately Suitable\", \"Highly Suitable\")))","v":"Highly Suitable"},null,"Solar Irradiation",{"$f":"IF(O15=\"Above 1460\", \"3\", IF(O15=\"1095 - 1460\", \"2\", IF(O15=\"949 - 1094\", \"1\", \"0\")))","v":"3"}]
["c)","¿Cuáles son los valores promedio mensuales de temperatura y precipitación?","Datos de precipitación del Banco Mundial",{"$nulls":12},{"$f":"IF(O19=0, \"Low Irrigation Requirement\",IF(O19=1,\"Marginally Suitable\",IF(O19=2,\"Moderately Suitable\",\"Highly Suitable\")))","v":"Highly Suitable"},null,"Precipitation",{"$f":"IF(P16=\"Moderately Suitable\",2,IF(P16=\"Marginally Suitable\",1,IF(P16=\"Low Irrigation Requirement\",0,3)))","v":3}]
[null,null,"E","F","M","A","M","J","J","A","S","O","N","D","Número de meses con aridez:"]
[]
[null,"Temperatura promedio mensual (°C)",23,23,23,22,25,18,17,19.5,22.9,24.9,24.4,23.3,{"$f":"COUNTIF(C21:N21,\">0\")","v":5},null,null,"Tavg",{"$f":"AVERAGE(C19:N19)","v":22.166666666666668},"TSD",{"$f":"STDEV(C19:N19)","v":2.6213575016611501}]
[null,"Precipitación media mensual (mm)",221,195,157,43,6,0,0,0,3.6,27.4,107.6,214.8,null,null,null,"Pavg",{"$f":"AVERAGE(C20:N20)","v":81.283333333333346},"PSD",{"$f":"STDEV(C20:N20)","v":91.749043426604572}]
[null,"Índice de aridez (Harouna & Carlson 1994)",{"$f":"((C19-$S$19)/$U$19)-((C20-$S$20)/$U$20)","v":-1.2049118901511016},{"$f":"((D19-$S$19)/$U$19)-((D20-$S$20)/$U$20)","v":-0.92153018905686723},-0.50735693361144751,0.35368110069615788,1.9014002560316063,-0.70357609099337681,-1.0850578230220305,-0.13135349295039633,1.1264469296416704,1.6300071442357935,0.56514272330771287,-1.0228917341277264,"http://agron-www.agron.iastate.edu/courses/Agron541/classes/541/lesson04a/4a.3.html"]
[null,{"$f":"IF(P12=0,\"Critical Geophysical Parameters NOT IDEAL for SPIS\",\"Proceed to INPUT_Weight Setting\")","v":"Proceed to INPUT_Weight Setting"}]
[]
[]
[]
[]
[]
[{"$nulls":5},"No recomendable"]
[{"$nulls":5},"Marginalmente apto"]
[{"$nulls":5},"Moderadamente apto"]
[{"$nulls":5},"Muy apto"]

{"sheet":"ENTRADA_Ajuste de valoración","index":2,"n_rows":41,"n_cols":9,"rows_kept":41,"cut":false,"hidden":false,"merged":[[11,1,11,5],[10,1,10,5],[4,5,6,5],[3,0,3,5]]}
[]
[null,null,null,"ENTRADA - Ajuste de Valoración"]
[]
[]
[]
[null,"Parámetros Geofísicos:"]
[null,"Parámetros Geofísicos no críticos"]
[null,"Parámetros adicionales que son clave para la evaluación del mercado para SPIS. Estos no afectan la viabilidad general de SPIS; afectan el éxito de la adopción de SPIS en una región según las condiciones geofísicas prevalecientes (por ejemplo, nivel freático, presencia de heladas, topografía, sistema agrícola de producción agrícola, etc.)."]
[null,"Inconsequential"]
[null,{"$f":"H40","v":5.5555555555555552E-2}]
[]
[null,"Condiciones de Negocio:"]
[null,"1. Intervenciones del gobierno",null,"2. Intervenciones de organizaciones de desarrollo",null,"3. Financiación"]
[null,"Evaluación de las intervenciones del gobierno como un parámetro del entorno empresarial para SPIS, analizando las políticas, normas y reglamentos que gobiernan los sectores del riego y la energía solar.",null,"Esta sección evalúa las intervenciones de las organizaciones de desarrollo que pueden influir de manera significativa en la adopción de SPIS dentro de un país o región.",null,"El parámetro analiza la capacidad de los usuarios finales para cubrir el alto costo de capital de SPIS, incluyendo el apoyo financiero del gobierno, las agencias de desarrollo y el sector privado."]
[null,"Inconsequential",null,"Important",null,"Important"]
[null,{"$f":"H31","v":5.5555555555555552E-2},null,{"$f":"H32","v":0.16666666666666666},null,{"$f":"H33","v":0.16666666666666666}]
[]
[null,"4. Disponibilidad y Costo de Alternativas",null,"5. Capacidad Técnica",null,"6. Conocimiento de las Tecnologías SPIS"]
[null,"Considera la disponibilidad y el costo de las fuentes de energía competidoras para los sistemas de riego.",null,"Esta sección evalúa la capacidad del personal en el país para diseñar, implementar y mantener sistemas SPIS.",null,"Evalúa la conciencia general de las tecnologías solares en el país, como la iluminación solar y los sistemas de calefacción, y los sistemas de riego (bombas solares)."]
[null,"Important",null,"Critical",null,"Ignore"]
[null,{"$f":"H34","v":0.16666666666666666},null,{"$f":"H35","v":0.27777777777777779},null,{"$f":"H36","v":0}]
[]
[null,"7. Importancia de la Agricultura para la Economía Local",null,"8. Tenencia de la Tierra",null,"9. Infraestructura de transporte y comunicación"]
[null,"Esta sección evalúa la importancia del sector agrícola para la economía del área a evaluar, determinando su contribución al PIB y al empleo junto con la proporción de tierra cultivable utilizada para la agricultura.",null,"Este parámetro busca una comprensión de los derechos de tenencia de la tierra que pueden obstaculizar o promover la adopción de SPIS. Los derechos de tenencia no solo determinan la seguridad de la inversión, sino también pueden servir como garantía para los préstamos.",null,"Esta sección evalúa la disponibilidad de infraestructura y sistemas de comunicación, como carreteras y redes móviles, para habilitar las cadenas de suministro y facilitar el movimiento de personas y bienes."]
[null,"Slightly important",null,"Ignore",null,"Ignore"]
[null,{"$f":"H37","v":0.1111111111111111},null,{"$f":"H38","v":0},null,{"$f":"H39","v":0}]
[]
[]
[]
[{"$nulls":5},"Parámetro","Ajuste de valoración","Porcentaje","Puntuación"]
[{"$nulls":5},"Intervenciones del gobierno",{"$f":"B15","v":"Inconsequential"},{"$f":"I31/$I$41","v":5.5555555555555552E-2},{"$f":"IF(B15=\"Inconsequential\",2,IF(B15=\"Slightly important\",4,IF(B15=\"Important\",6,IF(B15=\"Very Important\",8,IF(B15=\"Critical\",10)))))","v":2}]
[{"$nulls":5},"Intervenciones de organizaciones de desarrollo",{"$f":"D15","v":"Important"},{"$f":"I32/$I$41","v":0.16666666666666666},{"$f":"IF(D15=\"Inconsequential\",2,IF(D15=\"Slightly important\",4,IF(D15=\"Important\",6,IF(D15=\"Very Important\",8,IF(D15=\"Critical\",10)))))","v":6}]
[{"$nulls":5},"Financiación",{"$f":"F15","v":"Important"},{"$f":"I33/$I$41","v":0.16666666666666666},{"$f":"IF(F15=\"Inconsequential\",2,IF(F15=\"Slightly important\",4,IF(F15=\"Important\",6,IF(F15=\"Very Important\",8,IF(F15=\"Critical\",10)))))","v":6}]
[{"$nulls":5},"Disponibilidad y Costo de Alternativas",{"$f":"B20","v":"Important"},0.16666666666666666,{"$f":"IF(B20=\"Inconsequential\",2,IF(B20=\"Slightly important\",4,IF(B20=\"Important\",6,IF(B20=\"Very Important\",8,IF(B20=\"Critical\",10)))))","v":6}]
[{"$nulls":5},"Capacidad Técnica",{"$f":"D20","v":"Critical"},0.27777777777777779,{"$f":"IF(D20=\"Inconsequential\",2,IF(D20=\"Slightly important\",4,IF(D20=\"Important\",6,IF(D20=\"Very Important\",8,IF(D20=\"Critical\",10)))))","v":10}]
[{"$nulls":5},"Conocimiento de las Tecnologías SPIS",{"$f":"F20","v":"Ignore"},0,{"$f":"IF(F20=\"Inconsequential\",2,IF(F20=\"Slightly important\",4,IF(F20=\"Important\",6,IF(F20=\"Very Important\",8,IF(F20=\"Critical\",10)))))","v":false}]
[{"$nulls":5},"Importancia de la Agricultura para la Economía Local",{"$f":"B25","v":"Slightly important"},0.1111111111111111,{"$f":"IF(B25=\"Inconsequential\",2,IF(B25=\"Slightly important\",4,IF(B25=\"Important\",6,IF(B25=\"Very Important\",8,IF(B25=\"Critical\",10)))))","v":4}]
[{"$nulls":5},"Tenencia de la Tierra",{"$f":"D25","v":"Ignore"},0,{"$f":"IF(D25=\"Inconsequential\",2,IF(D25=\"Slightly important\",4,IF(D25=\"Important\",6,IF(D25=\"Very Important\",8,IF(D25=\"Critical\",10)))))","v":false}]
[{"$nulls":5},"Infraestructura de transporte y comunicación",{"$f":"F25","v":"Ignore"},0,{"$f":"IF(F25=\"Inconsequential\",2,IF(F25=\"Slightly important\",4,IF(F25=\"Important\",6,IF(F25=\"Very Important\",8,IF(F25=\"Critical\",10)))))","v":false}]
[{"$nulls":5},"Parámetros Geofísicos no críticos",{"$f":"B9","v":"Inconsequential"},5.5555555555555552E-2,{"$f":"IF(B9=\"Inconsequential\",2,IF(B9=\"Slightly important\",4,IF(B9=\"Important\",6,IF(B9=\"Very Important\",8,IF(B9=\"Critical\",10)))))","v":2}]
[{"$nulls":5},"Total",{"$f":"SUM(G31:G40)","v":0},{"$f":"SUM(H31:H40)","v":1},{"$f":"SUM(I31:I40)","v":36}]

{"sheet":"ENTRADA_Parámetros Geofísicos","index":3,"n_rows":17,"n_cols":10,"rows_kept":17,"cut":false,"hidden":false,"merged":[[3,0,3,5],[13,2,13,3],[10,2,10,3],[1,2,1,3],[7,2,7,3],[8,2,8,3],[9,2,9,3],[14,2,14,3],[15,2,15,3],[16,2,16,3],[11,1,11,5],[4,0,5,0],[6,2,6,3],[4,1,5,3]]}
[]
[null,null,"ENTRADA - Parámetros Geofísicos"]
[]
[]
[2,"Parámetros Geofísicos Adicionales",null,null,"Puntuación más alta posible","Puntuación alcanzada"]
[{"$nulls":4},{"$f":"'ENTRADA_Ajuste de valoración'!B10","v":5.5555555555555552E-2},{"$f":"SUM(I8:I11)","v":5.1388888888888887E-2}]
[null,"Preguntas","Fuente de datos de muestra",null,"Respuesta","Relevancia",null,"Weight","Attained Score","Raw Score"]
["a)",{"$f":"\"¿Cuál es el nivel freático promedio establecido para SPIS?\"","v":"¿Cuál es el nivel freático promedio establecido para SPIS?"},"Profundidad estimada de los recursos de aguas subterráneas",null,"Up to 7m","Inconsequential",null,{"$f":"E6/COUNTA(B8,B9,B10,B11)","v":1.3888888888888888E-2},{"$f":"(J8*H8)","v":1.3888888888888888E-2},{"$f":"IF(E8=\"Up to 7m\",1,IF(E8=\"7m - 25m\",0.8,IF(E8=\"25m - 50m\",0.6,IF(E8=\"50m - 100m\",0.1,IF(E8=\"Beyond 100m\",0,IF(E8=\"Unknown\",0))))))*IF(F8=\"Inconsequential\",6,IF(F8=\"Slightly important\",5,IF(F8=\"Important\",4,IF(F8=\"Very important\",3,IF(F8=\"Critical\",2)))))/6","v":1}]
["b)",{"$f":"\"¿Cuál es la temperatura ambiente anual mínima en relación con la frecuencia de heladas?\"","v":"¿Cuál es la temperatura ambiente anual mínima en relación con la frecuencia de heladas?"},"Datos de temperatura global del Banco Mundial",null,"1C to 30C","Inconsequential",null,{"$f":"(E6/COUNTA(B8,B9,B10,B11))","v":1.3888888888888888E-2},{"$f":"(J9*H9)","v":1.3888888888888888E-2},{"$f":"IF(E9=\"1C to 30C\",(IF(F9=\"Inconsequential\",6,IF(F9=\"Slightly important\",5,IF(F9=\"Important\",4,IF(F9=\"Very important\",3,IF(F9=\"Critical\",2)))))),(IF(F9=\"Inconsequential\",6,IF(F9=\"Slightly important\",4,IF(F9=\"Important\",2,IF(F9=\"Very important\",1,IF(F9=\"Critical\",0)))))))/6","v":1}]
["c)",{"$f":"\"¿Cómo se considera la topografía general del área?\"","v":"¿Cómo se considera la topografía general del área?"},"¿Cuál es la pendiente del área?",null,"Flat","Inconsequential",null,{"$f":"(E6/COUNTA(B8,B9,B10,B11))","v":1.3888888888888888E-2},{"$f":"(J10*H10)","v":1.3888888888888888E-2},{"$f":"IF(E10=\"Flat\",1,IF(E10=\"Moderate\",0.8,IF(E10=\"Steep\",0.6)))*IF(F10=\"Inconsequential\",6,IF(F10=\"Slightly important\",5,IF(F10=\"Important\",4,IF(F10=\"Very important\",3,IF(F10=\"Critical\",2)))))/6","v":1}]
["d)",{"$f":"\"¿Cuál es el principal tipo de producción en el sistema agrícola del área?\"","v":"¿Cuál es el principal tipo de producción en el sistema agrícola del área?"},"Mapas de Sistemas de Agricultura FAO",null,"Livestock and Crops","Inconsequential",null,{"$f":"(E6/COUNTA(B8,B9,B10,B11))","v":1.3888888888888888E-2},{"$f":"(J11*H11)","v":9.7222222222222189E-3},{"$f":"IF(E11=\"Seasonal Crops\",0.6,IF(E11=\"Perennial Crops\",0.8,IF(E11=\"Small Livestock\",1,IF(E11=\"Large Livestock\",0.9,IF(E11=\"Seasonal and Perennial Crops\",0.7,IF(E11=\"Livestock and Crops\",0.7))))))*IF(F11=\"Inconsequential\",6,IF(F11=\"Slightly important\",5,IF(F11=\"Important\",4,IF(F11=\"Very important\",3,IF(F11=\"Critical\",2)))))/6","v":0.69999999999999984}]
[null,{"$f":"IF((Calculations!G4)<(50 %), \"Your score is below 50 % of your initial values for Geophysical Parameters! Please revise your weight setting!\", \"\")","v":""}]
[]
[null,null,"¿Conoce fuentes de datos más recientes?"]
[null,null,"POR FAVOR COMPARTA"]
[null,null,"y ayúdenos a mejorar nuestras herramientas."]
[null,null,"Gracias"]

{"sheet":"ENTRADA_Condiciones de Mercado","index":4,"n_rows":108,"n_cols":10,"rows_kept":108,"cut":false,"hidden":false,"merged":[[59,0,60,0],[7,7,9,7],[7,8,9,8],[7,9,9,9],[1,2,1,3],[13,0,14,0],[13,1,14,3],[14,7,14,9],[4,0,5,0],[4,1,5,3],[5,7,5,9],[6,2,6,3],[10,2,10,3],[7,1,9,1],[7,5,9,5],[7,0,9,0],[7,2,9,2],[7,4,9,4],[3,0,3,5],[17,8,19,8],[17,9,19,9],[19,2,19,3],[21,0,22,0],[17,7,19,7],[104,2,104,3],[105,2,105,3],[106,2,106,3],[107,2,107,3],[15,2,15,3],[17,1,18,1],[17,4,19,4],[66,1,66,5],[62,1,62,5],[61,2,61,3],[59,1,60,3],[57,2,57,3],[99,2,101,3],[81,2,81,3],[82,2,82,3],[84,5,85,5],[84,4,85,4],[86,4,87,4],[21,1,22,3],[17,5,19,5],[28,3,29,3],[97,2,97,3],[102,1,102,5],[69,1,69,5],[17,0,18,0],[52,0,53,0],[34,0,35,0],[23,2,23,3],[39,0,43,0],[39,5,43,5],[38,2,38,3],[39,1,43,1],[43,2,43,3],[39,3,40,3],[39,4,43,4],[28,2,29,2],[33,1,33,5],[20,1,20,5],[39,7,43,7],[39,8,43,8],[39,9,43,9],[86,7,87,7],[86,8,87,8],[86,9,87,9],[83,7,85,7],[83,8,85,8],[98,1,98,5],[84,1,85,1],[92,1,92,5],[93,2,96,3],[83,9,85,9],[58,1,58,5],[51,1,51,5],[84,0,85,0],[84,3,87,3],[86,1,87,1],[86,0,87,0],[86,5,87,5],[89,1,90,3],[91,2,91,3],[83,3,83,5],[89,0,90,0],[88,1,88,5],[84,2,87,2],[79,0,80,0],[70,0,71,0],[70,1,71,3],[72,2,72,3],[73,2,73,3],[74,2,74,3],[75,2,75,3],[76,2,76,3],[77,2,77,3],[79,1,80,3],[12,1,12,5],[78,1,78,5],[45,1,45,5],[24,1,24,5],[25,2,25,3],[26,2,26,3],[27,1,27,5],[30,1,30,5],[31,2,31,3],[32,2,32,3],[56,2,56,3],[55,2,55,3],[54,2,54,3],[52,1,53,3],[48,1,48,5],[37,1,37,5],[34,1,35,3],[63,2,65,3]]}
[]
[null,null,"ENTRADA - Condiciones de Mercado"]
[]
[]
[1,"Intervenciones Gubernamentales",null,null,"Puntuación máx. posible","Puntuación alcanzada"]
[{"$nulls":4},{"$f":"'ENTRADA_Ajuste de valoración'!B16","v":5.5555555555555552E-2},{"$f":" IF(OR(AND(E8=\"No\",F8=\"Critical\"),AND(E11=\"No\",F11=\"Critical\"),AND(E12=\"No\",F12=\"Critical\")),0,SUM(I8:I12))","v":5.5555555555555552E-2}]
[null,"Preguntas","Fuentes de datos de muestra",null,"Respuesta","Relevancia",null,"Weight","Attained score","Raw Score"]
["a)",{"$f":" \"¿El gobierno, las políticas y leyes nacionales y locales fomentan el uso de equipos de riego solar?\"","v":"¿El gobierno, las políticas y leyes nacionales y locales fomentan el uso de equipos de riego solar?"},"• Políticas de riego y / o energía solar, leyes, planes de desarrollo del sector\n• Licencias de técnicos en energía solar, proveedores y / o empresas contratistas\n• Regulación fiscal del gobierno como exenciones de impuestos y aranceles","Políticas de desarrollo de energía limpia","Yes","Inconsequential",null,{"$f":"E6/COUNTA(B8:B12)","v":1.8518518518518517E-2},{"$f":"(J8*H8)","v":1.8518518518518517E-2},{"$f":"(IF(E8=\"Yes\",(IF(F8=\"Inconsequential\",6,IF(F8=\"Slightly important\",5,IF(F8=\"Important\",4,IF(F8=\"Very important\",3,IF(F8=\"Critical\",2)))))),(IF(F8=\"Inconsequential\",3,IF(F8=\"Slightly important\",2,IF(F8=\"Important\",1,IF(F8=\"Very important\",1,IF(F8=\"Critical\",0))))))))/6","v":1}]
[null,null,null,"Políticas de apoyo a las energías renovables en los países en desarrollo: tabla 4, pág. 121"]
[null,null,null,"Documentos de política de países de Asia-Pacífico"]
["b)",{"$f":"\"¿Hay programas gubernamentales que fomenten el uso de dispositivos SPIS?\"","v":"¿Hay programas gubernamentales que fomenten el uso de dispositivos SPIS?"},"• Programas de riego y energía solar apoyados por recursos del gobierno",null,"Yes","Inconsequential",null,{"$f":"E6/COUNTA(B8:B12)","v":1.8518518518518517E-2},{"$f":"(J11*H11)","v":1.8518518518518517E-2},{"$f":"(IF(E11=\"Yes\",(IF(F11=\"Inconsequential\",6,IF(F11=\"Slightly important\",5,IF(F11=\"Important\",4,IF(F11=\"Very important\",3,IF(F11=\"Critical\",2)))))),(IF(F11=\"Inconsequential\",3,IF(F11=\"Slightly important\",2,IF(F11=\"Important\",1,IF(F11=\"Very important\",1,IF(F11=\"Critical\",0))))))))/6","v":1}]
["c)",{"$f":"\"¿Existen ministerios y instituciones relevantes del gobierno que brinden apoyo al sector?\"","v":"¿Existen ministerios y instituciones relevantes del gobierno que brinden apoyo al sector?"},"• Ministerios de agricultura y energía con participación en el sector SPIS\n• Organizaciones gubernamentales de riego, juntas, grupos\n• Organizaciones gubernamentales que brindan información relacionada con SPIS\n• Regulación y cumplimiento de normas gubernamentales de calidad y estándares","Regulaciones e incentivos de sistemas aislados","Yes","Inconsequential",null,{"$f":"E6/COUNTA(B8:B12)","v":1.8518518518518517E-2},{"$f":"(J12*H12)","v":1.8518518518518517E-2},{"$f":"(IF(E12=\"Yes\",(IF(F12=\"Inconsequential\",6,IF(F12=\"Slightly important\",5,IF(F12=\"Important\",4,IF(F12=\"Very important\",3,IF(F12=\"Critical\",2)))))),(IF(F12=\"Inconsequential\",3,IF(F12=\"Slightly important\",2,IF(F12=\"Important\",1,IF(F12=\"Very important\",1,IF(F12=\"Critical\",0))))))))/6","v":1}]
[]
[2,"Intervenciones de Organizaciones de Desarrollo",null,null,"Puntuación máx. posible","Puntuación alcanzada"]
[{"$nulls":4},{"$f":"'ENTRADA_Ajuste de valoración'!D16","v":0.16666666666666666},{"$f":" IF(OR(AND(E17=\"No\",F17=\"Critical\"),AND(E18=\"No\",F18=\"Critical\")),0,SUM(I17:I20))","v":0.16666666666666666}]
[null,"Preguntas","Fuentes de datos de muestra",null,"Respuesta","Relevancia",null,"Weight","Attained score","Raw Score"]
["a)",{"$f":"\"¿Existen programas nacionales ofrecidos por instituciones no gubernamentales que promuevan la adopción del riego?\"","v":"¿Existen programas nacionales ofrecidos por instituciones no gubernamentales que promuevan la adopción del riego?"},"• Lista de posibles * agencias de desarrollo y organizaciones multilaterales:","GIZ (Deutsche Gesellschaft für Internationale Zusammenarbeit GmbH)","Yes","Inconsequential",null,{"$f":"E15/(COUNTA(B17:B20))","v":8.3333333333333329E-2},{"$f":"(J17*H17)","v":8.3333333333333329E-2},{"$f":"(IF(E17=\"Yes\",(IF(F17=\"Inconsequential\",6,IF(F17=\"Slightly important\",5,IF(F17=\"Important\",4,IF(F17=\"Very important\",3,IF(F17=\"Critical\",2)))))),(IF(F17=\"Inconsequential\",3,IF(F17=\"Slightly important\",2,IF(F17=\"Important\",1,IF(F17=\"Very important\",1,IF(F17=\"Critical\",0))))))))/6","v":1}]
["b)",{"$f":"\"¿Existen programas nacionales ofrecidos por instituciones no gubernamentales que promuevan específicamente la adopción de dispositivos SPIS?\"","v":"¿Existen programas nacionales ofrecidos por instituciones no gubernamentales que promuevan específicamente la adopción de dispositivos SPIS?"},"• Lista de posibles servicios y fondos:","GEF (Global Environment Facility)","Yes","Inconsequential",null,{"$f":"E15/COUNTA(B17:B20)","v":8.3333333333333329E-2},{"$f":"(J18*H18)","v":8.3333333333333329E-2},{"$f":"(IF(E18=\"Yes\",(IF(F18=\"Inconsequential\",6,IF(F18=\"Slightly important\",5,IF(F18=\"Important\",4,IF(F18=\"Very important\",3,IF(F18=\"Critical\",2)))))),(IF(F18=\"Inconsequential\",3,IF(F18=\"Slightly important\",2,IF(F18=\"Important\",1,IF(F18=\"Very important\",1,IF(F18=\"Critical\",0))))))))/6","v":1}]
[null,null,"• Lista de posibles * centros de investigación y otras ONG:","AGRA"]
[null,null,"* Lista no exhaustiva"]
[]
[3,"Financiación",null,null,"Puntuación máx. posible","Puntuación alcanzada"]
[{"$nulls":4},{"$f":"'ENTRADA_Ajuste de valoración'!F16","v":0.16666666666666666},{"$f":"IF(OR(AND(E26=1,F26=\"Critical\"),AND(E33=\"No\",F33=\"Critical\"), AND(E29=0,F29=\"Critical\"), AND(E30=0,F30=\"Critical\")),0,SUM(I25,I28,I33))","v":0.16666666666666666}]
[null,"Preguntas","Fuentes de datos de muestra",null,"Respuesta","Relevancia",null,"Weight","Attained score","Raw Score"]
["a)","Capacidad financiera de los usuarios finales",{"$nulls":5},{"$f":"E23/COUNTA(B25,B28,B33)","v":5.5555555555555552E-2},{"$f":"I26+I27","v":5.5555555555555552E-2}]
["i)",{"$f":"\"¿Qué proporción de la población rural es pobre según el índice de pobreza multidimensional?\"","v":"¿Qué proporción de la población rural es pobre según el índice de pobreza multidimensional?"},"OPHI Global MPI Interactive Databank: Population in multidimensional poverty (H) (%), Rural MPI Poor",null,0.2,"Inconsequential",null,{"$f":"H25/COUNTA(B26:B27)","v":2.7777777777777776E-2},{"$f":"(H26*J26)","v":2.7777777777777776E-2},{"$f":"IF(F26=\"Inconsequential\",1,(1-E26))","v":1}]
["ii)",{"$f":"\"¿Cuál es el valor del INB per cápita?\"","v":"¿Cuál es el valor del INB per cápita?"}," World Bank data: GNI per capita, Atlas method (current US$) 2016",null,"Low income ($1,005 or less)","Inconsequential",null,{"$f":"H25/COUNTA(B26:B27)","v":2.7777777777777776E-2},{"$f":"(H27*J27)","v":2.7777777777777776E-2},{"$f":"(IF(F27=\"Inconsequential\",5,IF(E27=\"Low income ($1,005 or less)\",1,IF(E27=\"Lower Middle Income ($1,006 to $3,955)\",2,IF(E27=\"Upper Middle Income ($3,956 to $12,235)\",4,IF(E27=\"High Income ($12.236 or more)\",5,))))))/(5)","v":1}]
["b)","Disponibilidad de apoyo de instituciones financieras",{"$nulls":5},{"$f":"E23/COUNTA(B25,B28,B33)","v":5.5555555555555552E-2},{"$f":"I29+I30+I32","v":5.5555555555555552E-2}]
["i)",{"$f":"\"¿Qué proporción de la población mayor de 15 años posee una cuenta bancaria? \"","v":"¿Qué proporción de la población mayor de 15 años posee una cuenta bancaria? "},"i) Cuenta (% de más de 15 años) según el país\nii) Préstamo formal (% de más de 15 años) según el país","World Bank, Financial Inclusion Data",0.3,"Inconsequential",null,{"$f":"H28/COUNTA(B29:B30,B32)","v":1.8518518518518517E-2},{"$f":"H29*J29","v":1.8518518518518517E-2},{"$f":"IF(F29=\"Inconsequential\",1,E29)","v":1}]
["ii)",{"$f":"\"¿Cuál es la proporción de la población mayor de 15 años que pidió un préstamo de una institución bancaria en el año dado *?\"","v":"¿Cuál es la proporción de la población mayor de 15 años que pidió un préstamo de una institución bancaria en el año dado *?"},null,null,0.2,"Inconsequential",null,{"$f":"H28/COUNTA(B29:B30,B32)","v":1.8518518518518517E-2},{"$f":"H30*J30","v":1.8518518518518517E-2},{"$f":"IF(F30=\"Inconsequential\",1,E30)","v":1}]
[null,"* año dado: aquel con los datos disponibles más recientes"]
["iii)",{"$f":"\"¿Cuál es la facilidad para obtener clasificación de crédito en el país de interés?\"","v":"¿Cuál es la facilidad para obtener clasificación de crédito en el país de interés?"},"Clasificación de crédito 2017",null,77,"Inconsequential",null,{"$f":"H28/COUNTA(B29:B30,B32)","v":1.8518518518518517E-2},{"$f":"(H32*J32)","v":1.8518518518518517E-2},{"$f":"(IF(F32=\"Inconsequential\",186,(186-E32)))/186","v":1}]
["c)",{"$f":"\"¿Hay algún incentivo económico del gobierno que afecte la adopción de dispositivos SPIS?\"","v":"¿Hay algún incentivo económico del gobierno que afecte la adopción de dispositivos SPIS?"},"• Exenciones de impuestos gubernamentales, subsidios, reembolsos, créditos, etc. otorgados a clientes de productos SPIS, proveedores u otros intermediarios tales como financieros",null,"Yes","Inconsequential",null,{"$f":"E23/COUNTA(B25,B28,B33)","v":5.5555555555555552E-2},{"$f":"H33*J33","v":5.5555555555555552E-2},{"$f":"(IF(E33=\"Yes\",(IF(F33=\"Inconsequential\",6,IF(F33=\"Slightly important\",5,IF(F33=\"Important\",4,IF(F33=\"Very important\",3,IF(F33=\"Critical\",2)))))),(IF(F33=\"Inconsequential\",3,IF(F33=\"Slightly important\",2,IF(F33=\"Important\",1,IF(F33=\"Very important\",1,IF(F33=\"Critical\",0))))))))/6","v":1}]
[]
[4,"Disponibilidad y costo de alternativas fuentes de energía para el bombeo\n",null,null,"Puntuación máx. posible","Puntuación alcanzada"]
[{"$nulls":4},{"$f":"'ENTRADA_Ajuste de valoración'!B21","v":0.16666666666666666},{"$f":"IF(OR(AND(E39=\"Yes\",F39=\"Critical\"),AND(E40=\"Yes\",F40=\"Critical\"),AND(E47=\"Yes\",F47=\"Critical\"),AND(E48=\"Yes\",F48=\"Critical\")),0,SUM(I38,I46,I49))","v":0.1111111111111111}]
[null,"Preguntas","Muestra de fuentes de datos locales","Muestra de fuentes de datos nacionales","Respuesta","Relevancia",null,"Weight","Attained score","Raw Score"]
["a)","Disponibilidad de fuentes alternativas competitivas de energía",{"$nulls":5},{"$f":"E36/COUNTA(B38,B46,B49)","v":5.5555555555555552E-2},{"$f":"I39+I40+I45","v":5.5555555555555552E-2}]
["i)",{"$f":"\"¿Tiene el país recursos de combustibles fósiles que explota?\"","v":"¿Tiene el país recursos de combustibles fósiles que explota?"},"Reservas nacionales de combustibles fósiles",null,"No","Inconsequential",null,{"$f":"H38/(COUNTA(B39:B45)-1)","v":2.7777777777777776E-2},{"$f":"H39*J39","v":2.7777777777777776E-2},{"$f":"IF(E39=\"No\",IF(F39=\"Inconsequential\",1,IF(F39=\"Important\",0.5)),0)","v":1}]
["ii)",{"$f":"\"¿El área de interés está muy cerca (a menos de 5 km de un punto de acceso a la red) de la red o la tasa de electrificación rural del país es mayor al 80 %?\"","v":"¿El área de interés está muy cerca (a menos de 5 km de un punto de acceso a la red) de la red o la tasa de electrificación rural del país es mayor al 80 %?"},"Red africana","Acceso a la electricidad, tasa de electrificación rural","No","Inconsequential",null,{"$f":"H38/((COUNTA(B39:B45)-1)*2)","v":1.3888888888888888E-2},{"$f":"H40*J40","v":1.3888888888888888E-2},{"$f":"IF(E40=\"No\",IF(F40=\"Inconsequential\",1,IF(F40=\"Important\",0.5)),0)","v":1}]
[null,null,"Red europea"]
[null,null,"Red estadounidense","Seguimiento de SDG 7"]
[null,null,"Red australiana","Mapa de redes"]
[null,null,"Para una mayor precisión, utilice datos específicos del país"]
["iii)",{"$f":"\"¿Cuál es la frecuencia de caídas de corriente en el área de interés?\"","v":"¿Cuál es la frecuencia de caídas de corriente en el área de interés?"},"• Fiabilidad local del suministro de electricidad en el área de interés","Frecuencia de caídas de corriente","Low","Inconsequential",null,{"$f":"H38/((COUNTA(B39:B45)-1)*2)","v":1.3888888888888888E-2},{"$f":"H45*J45","v":1.3888888888888888E-2},{"$f":"(IF(F45=\"Inconsequential\",5,IF(E45=\"Low\",1,IF(E45=\"Regular\",2,IF(E45=\"High\",4,IF(E45=\"Very high\",5,))))))/5","v":1}]
["b)","Subsidios",{"$nulls":5},{"$f":"E36/COUNTA(B38,B46,B49)","v":5.5555555555555552E-2},{"$f":"I47+I48","v":5.5555555555555552E-2}]
["i)",{"$f":"\"¿Existe un subsidio a la red en el área de interés, incluyendo el costo de la electricidad y / o la tarifa de conexión a la red?\"","v":"¿Existe un subsidio a la red en el área de interés, incluyendo el costo de la electricidad y / o la tarifa de conexión a la red?"},"• Área de interés regulación de suministro de electricidad local","Subsidio nacional de electricidad","No","Inconsequential",null,{"$f":"H38/COUNTA(B47:B48)","v":2.7777777777777776E-2},{"$f":"H47*J47","v":2.7777777777777776E-2},{"$f":"IF(E47=\"No\",IF(F47=\"Inconsequential\",1,IF(F47=\"Important\",0.5)),0)","v":1}]
["ii)",{"$f":"\"¿Existe un subsidio al combustible en el área de interés? \"","v":"¿Existe un subsidio al combustible en el área de interés? "},"• Área de interés regulación de suministro de combustible local","Subsidio nacional al combustible","No","Inconsequential",null,{"$f":"H38/COUNTA(B47:B48)","v":2.7777777777777776E-2},{"$f":"H48*J48","v":2.7777777777777776E-2},{"$f":"IF(E48=\"No\",IF(F48=\"Inconsequential\",1,IF(F48=\"Important\",0.5)),0)","v":1}]
["c)","Comparación de costos",{"$nulls":5},{"$f":"E36/COUNTA(B38,B46,B49)","v":5.5555555555555552E-2},{"$f":"I50+I51","v":0}]
["i)",{"$f":"\"¿Cuál es la tarifa minorista de electricidad promedio en USD por kWh para todos los usuarios finales en el área de interés?\"","v":"¿Cuál es la tarifa minorista de electricidad promedio en USD por kWh para todos los usuarios finales en el área de interés?"},"• Costo del suministro local de electricidad en USD por kWh en área de interés","Tarifa de electricidad minorista (promedio de todos los usuarios finales) en USD / kWh",null,"La referencia para una penalización mínima será de 1 USD / kWh, con la potencia más cara, redondeada al siguiente número entero (0,61)",null,{"$f":"H49/COUNTA(B50:B51)","v":2.7777777777777776E-2},{"$f":"H50*J50","v":0},{"$f":"E50","v":0}]
["ii)",{"$f":"\"¿Cuál es el precio promedio de venta al público de diésel en USD por litro en el área de interés?\"","v":"¿Cuál es el precio promedio de venta al público de diésel en USD por litro en el área de interés?"},"• Costo promedio local de diesel en USD por litro en área de interés","Precios de diesel USD / litro\n",null,"La referencia para la multa mínima será de 3 USD / litro el precio de Islandia, con el diésel más caro, redondeado al siguiente número entero (2.03)",null,{"$f":"H49/COUNTA(B50:B51)","v":2.7777777777777776E-2},{"$f":"H51*J51","v":0},{"$f":"E51/3","v":0}]
[]
[5,"Capacidad técnica por SPIS",null,null,"Puntuación máx. posible","Puntuación alcanzada"]
[{"$nulls":4},{"$f":"'ENTRADA_Ajuste de valoración'!D21","v":0.27777777777777779},{"$f":" IF(OR(AND(E56=\"No\",F56=\"Critical\"),AND(E57=\"No\",F57=\"Critical\"),AND(E58=\"No\",F58=\"Critical\")),0,SUM(I56:I58))","v":0.23148148148148151}]
[null,"Preguntas","Fuentes de datos nacionales de muestra",null,"Respuesta","Relevancia",null,"Weight","Attained score","Raw Score"]
["a)",{"$f":"\"¿Hay sesiones de capacitación sobre tecnologías y aplicaciones solares (Diseño, operación, mantenimiento y reparaciones) disponibles en el área de interés?\"","v":"¿Hay sesiones de capacitación sobre tecnologías y aplicaciones solares (Diseño, operación, mantenimiento y reparaciones) disponibles en el área de interés?"},{"$f":"\"• Cursos de sistemas y tecnologías solares en instituciones educativas en el área de interés.\"","v":"• Cursos de sistemas y tecnologías solares en instituciones educativas en el área de interés."},null,"No","Inconsequential",null,{"$f":"E54/COUNTA(B56:B58)","v":9.2592592592592601E-2},{"$f":"(J56*H56)","v":4.6296296296296301E-2},{"$f":"(IF(E56=\"Yes\",(IF(F56=\"Inconsequential\",6,IF(F56=\"Slightly important\",5,IF(F56=\"Important\",4,IF(F56=\"Very important\",3,IF(F56=\"Critical\",2)))))),(IF(F56=\"Inconsequential\",3,IF(F56=\"Slightly important\",2,IF(F56=\"Important\",1,IF(F56=\"Very important\",1,IF(F56=\"Critical\",0))))))))/6","v":0.5}]
["b)",{"$f":"\"¿Los técnicos de energía solar en el área de interés tienen licencia para llevar a cabo su trabajo por parte del gobierno?\"","v":"¿Los técnicos de energía solar en el área de interés tienen licencia para llevar a cabo su trabajo por parte del gobierno?"},"• Reglamento gubernamental sobre licencias de técnicos de energía solar.",null,"Yes","Inconsequential",null,{"$f":"E54/COUNTA(B56:B58)","v":9.2592592592592601E-2},{"$f":"(J57*H57)","v":9.2592592592592601E-2},{"$f":"(IF(E57=\"Yes\",(IF(F57=\"Inconsequential\",6,IF(F57=\"Slightly important\",5,IF(F57=\"Important\",4,IF(F57=\"Very important\",3,IF(F57=\"Critical\",2)))))),(IF(F57=\"Inconsequential\",3,IF(F57=\"Slightly important\",2,IF(F57=\"Important\",1,IF(F57=\"Very important\",1,IF(F57=\"Critical\",0))))))))/6","v":1}]
["c)","¿La tecnología solar forma parte del currículo en cursos o programas agrícolas en instituciones de capacitación agrícola?",{"$f":"\"• Cursos de sistemas y tecnologías solares en instituciones educativas en el área de interés.\"","v":"• Cursos de sistemas y tecnologías solares en instituciones educativas en el área de interés."},null,"Yes","Inconsequential",null,{"$f":"E54/COUNTA(B56:B58)","v":9.2592592592592601E-2},{"$f":"(J58*H58)","v":9.2592592592592601E-2},{"$f":"(IF(E58=\"Yes\",(IF(F58=\"Inconsequential\",6,IF(F58=\"Slightly important\",5,IF(F58=\"Important\",4,IF(F58=\"Very important\",3,IF(F58=\"Critical\",2)))))),(IF(F58=\"Inconsequential\",3,IF(F58=\"Slightly important\",2,IF(F58=\"Important\",1,IF(F58=\"Very important\",1,IF(F58=\"Critical\",0))))))))/6","v":1}]
[]
[6,"Conocimiento de tecnologías de SPIS y de riego",null,null,"Puntuación máx. posible","Puntuación alcanzada"]
[{"$nulls":4},{"$f":"'ENTRADA_Ajuste de valoración'!F21","v":0},{"$f":" IF(OR(AND(E64=\"No\",F64=\"Critical\"),AND(E68=\"No\",F68=\"Critical\"),AND(E65=\"No\",F65=\"Critical\"),AND(E69=0,F69=\"Critical\")),0,SUM(I63,I67,))","v":0}]
[null,"Preguntas","Fuentes de datos nacionales de muestra",null,"Repuesta","Relevancia",null,"Weight","Attained score","Raw Score"]
["a)","Solar",{"$nulls":5},{"$f":"E61/COUNTA(B63,B67)","v":0},{"$f":"I64+I65+I66","v":0}]
["i)",{"$f":"\"¿Ha habido un aumento cumulativo en la capacidad instalada de energía solar entre los años 2012 - 2016 en el área de interés?\"","v":"¿Ha habido un aumento cumulativo en la capacidad instalada de energía solar entre los años 2012 - 2016 en el área de interés?"},"IRENA dashboard: Tendencias en Energías Renovables",null,"Yes","Inconsequential",null,{"$f":"H63/COUNTA(B64:B66)","v":0},{"$f":"(J64*H64)","v":0},{"$f":"(IF(E64=\"Yes\",(IF(F64=\"Inconsequential\",6,IF(F64=\"Slightly important\",5,IF(F64=\"Important\",4,IF(F64=\"Very important\",3,IF(F64=\"Critical\",2)))))),(IF(F64=\"Inconsequential\",3,IF(F64=\"Slightly important\",2,IF(F64=\"Important\",1,IF(F64=\"Very important\",1,IF(F64=\"Critical\",0))))))))/6","v":1}]
["ii)",{"$f":"\"¿Hay un aumento general en la energía solar adicional neta anual instalada entre los años 2012 - 2016 en el área de interés?\"","v":"¿Hay un aumento general en la energía solar adicional neta anual instalada entre los años 2012 - 2016 en el área de interés?"},null,null,"Yes","Inconsequential",null,{"$f":"H63/COUNTA(B64:B66)","v":0},{"$f":"(J65*H65)","v":0},{"$f":"(IF(E65=\"Yes\",(IF(F65=\"Inconsequential\",6,IF(F65=\"Slightly important\",5,IF(F65=\"Important\",4,IF(F65=\"Very important\",3,IF(F65=\"Critical\",2)))))),(IF(F65=\"Inconsequential\",3,IF(F65=\"Slightly important\",2,IF(F65=\"Important\",1,IF(F65=\"Very important\",1,IF(F65=\"Critical\",0))))))))/6","v":1}]
["iii)","¿Cuál es la proporción de energía solar de la capacidad total de energía instalada?",null,null,0.05,"Important",null,{"$f":"H63/COUNTA(B64:B66)","v":0},{"$f":"(J66*H66)","v":0},{"$f":"IF(F66=\"Inconsequential\",0.5,E66)","v":0.05}]
["b)","Redes de distribución para sistemas solares y de riego",{"$nulls":5},{"$f":"E61/COUNTA(B63,B67)","v":0},{"$f":"I68+I69","v":0}]
["i)",{"$f":"\"¿Existen proveedores y / o distribuidores de productos de bombeo de agua de fabricantes internacionales en el mercado del área de interés? \"","v":"¿Existen proveedores y / o distribuidores de productos de bombeo de agua de fabricantes internacionales en el mercado del área de interés? "},"• Lista de los principales productos y proveedores de bombas de agua","Ebara","Yes","Inconsequential",null,{"$f":"H67/COUNTA(B68:B69)","v":0},{"$f":"(J68*H68)","v":0},{"$f":"(IF(E68=\"Yes\",(IF(F68=\"Inconsequential\",6,IF(F68=\"Slightly important\",5,IF(F68=\"Important\",4,IF(F68=\"Very important\",3,IF(F68=\"Critical\",2)))))),(IF(F68=\"Inconsequential\",3,IF(F68=\"Slightly important\",2,IF(F68=\"Important\",1,IF(F68=\"Very important\",1,IF(F68=\"Critical\",0))))))))/6","v":1}]
["ii)",{"$f":"\"¿Existen proveedores y / o distribuidores de sistemas solares de fabricantes globales en el mercado del área de interés? \"","v":"¿Existen proveedores y / o distribuidores de sistemas solares de fabricantes globales en el mercado del área de interés? "},"• Lista de los principales productos y proveedores de energía solar fotovoltaica","Ebara","Yes","Inconsequential",null,{"$f":"H67/COUNTA(B68:B69)","v":0},{"$f":"(J69*H69)","v":0},{"$f":"(IF(E69=\"Yes\",(IF(F69=\"Inconsequential\",6,IF(F69=\"Slightly important\",5,IF(F69=\"Important\",4,IF(F69=\"Very important\",3,IF(F69=\"Critical\",2)))))),(IF(F69=\"Inconsequential\",3,IF(F69=\"Slightly important\",2,IF(F69=\"Important\",1,IF(F69=\"Very important\",1,IF(F69=\"Critical\",0))))))))/6","v":1}]
[]
[7,"Importancia de la agricultura para la economía local",null,null,"Puntuación máx. posible","Puntuación alcanzada"]
[{"$nulls":4},{"$f":"'ENTRADA_Ajuste de valoración'!B26","v":0.1111111111111111},{"$f":" IF(OR(AND(E74=0,F74=\"Critical\"),AND(E76=0,F76=\"Critical\"),AND(E77=0,F77=\"Critical\")),0,SUM(I74:I78))","v":5.5555555555555552E-2}]
[null,"Preguntas","Fuentes de datos nacionales de muestra",null,"Respuesta","Relevancia",null,"Weight","Attained score","Raw Score"]
["a)",{"$f":"\"¿Qué proporción de la población empleada trabaja en el sector agrícola?\"","v":"¿Qué proporción de la población empleada trabaja en el sector agrícola?"},"Empleo en Agricultura\n (% del empleo total, indicadores por país en 2017, año más reciente) (Banco Mundial)",null,null,"Inconsequential",null,{"$f":"E72/COUNTA(B74:B78)","v":2.222222222222222E-2},{"$f":"(J74*H74)","v":1.111111111111111E-2},{"$f":"IF(F74=\"Inconsequential\",0.5,E74)","v":0.5}]
["b)",{"$f":"\"¿Qué proporción de la población es rural?\"","v":"¿Qué proporción de la población es rural?"}," Población rural\n (% de la población total en 2016) \n(Banco Mundial)",null,null,"Inconsequential",null,{"$f":"E72/COUNTA(B74:B78)","v":2.222222222222222E-2},{"$f":"(J75*H75)","v":1.111111111111111E-2},{"$f":"IF(F75=\"Inconsequential\",0.5,E75)","v":0.5}]
["c)",{"$f":"\"¿Qué proporción del PIB del área de interés es de origen agrícola? \"","v":"¿Qué proporción del PIB del área de interés es de origen agrícola? "},"Agricultura, valor agregado \n(% del PIB, Indicadores por país en 2016, año más reciente)\n(Banco Mundial)\n",null,null,"Inconsequential",null,{"$f":"E72/COUNTA(B74:B78)","v":2.222222222222222E-2},{"$f":"(J76*H76)","v":1.111111111111111E-2},{"$f":"IF(F76=\"Inconsequential\",0.5,E76)","v":0.5}]
["e)",{"$f":"\"¿Qué proporción de la tierra total es tierra agrícola?\"","v":"¿Qué proporción de la tierra total es tierra agrícola?"}," Tierra agrícola \n(% del área de tierra, Indicadores por país en 2015, año más reciente)\n(Banco Mundial)",null,null,"Inconsequential",null,{"$f":"E72/COUNTA(B74:B78)","v":2.222222222222222E-2},{"$f":"(J77*H77)","v":1.111111111111111E-2},{"$f":"IF(F77=\"Inconsequential\",0.5,E77)","v":0.5}]
["d)",{"$f":"\"¿Qué porcentaje de las tierras cultivadas es de regadío?\"","v":"¿Qué porcentaje de las tierras cultivadas es de regadío?"},"Área cultivada en regadío\n (% del área total cultivada)\n(FAO, mapa Aquastat)",null,null,"Inconsequential",null,{"$f":"E72/COUNTA(B74:B78)","v":2.222222222222222E-2},{"$f":"(J78*H78)","v":1.111111111111111E-2},{"$f":"IF(F78=\"Inconsequential\",0.5,E78)+IF(E78>E77,\"0,25\",\"0\")","v":0.5}]
[]
[8,"Derechos de uso del suelo, propiedad y tenencia",null,null,"Puntuación máx. posible","Puntuación alcanzada"]
[{"$nulls":4},{"$f":"'ENTRADA_Ajuste de valoración'!D26","v":0},{"$f":"SUM(I83:I87)","v":0}]
[null,"Preguntas","Fuentes de datos nacionales de muestra",null,"Respuesta","Relevancia",null,"Weight","Attained score","Raw Score"]
["a)",{"$f":"\"¿Qué proporción de la superficie total es de tierras indígenas y comunitarias?\"","v":"¿Qué proporción de la superficie total es de tierras indígenas y comunitarias?"},"Punto de referencia: plataforma global de tierras indígenas y comunitarias",null,0.6,"Inconsequential",null,{"$f":"$E$81/COUNTA(B83,B85,B87)","v":0},{"$f":"(J83*H83)","v":0},{"$f":"IF(F83=\"Inconsequential\",0.5,(1-E83))","v":0.5}]
[null,"Impacto de la densidad de población en SPIS","Fuentes de datos para densidad de población","Densidad de población",null,null,null,{"$f":"$E$81/COUNTA(B83,B85,B87)","v":0},{"$f":"(J84*H84)","v":0},{"$f":"IF(E85=\"Positive\",(IF(F85=\"Inconsequential\",6,IF(F85=\"Slightly important\",5,IF(F85=\"Important\",4,IF(F85=\"Very important\",3,IF(F85=\"Critical\",2)))))),(IF(F85=\"Inconsequential\",3,IF(F85=\"Slightly important\",2,IF(F85=\"Important\",1,IF(F85=\"Very important\",1,IF(F85=\"Critical\",0)))))))/6","v":0.66666666666666663}]
["b)","¿La densidad de población afecta positivamente o negativamente el mercado para SPIS?","Datos de Densidad de Población Mundial","<1","Positive","Important"]
[]
["c)","¿Tiene la densidad de población un efecto positivo o negativo en la disponibilidad de tierras de uso agrícola?",null,null,"Positive","Inconsequential",null,{"$f":"$E$81/COUNTA(B83,B85,B87)","v":0},{"$f":"(J87*H87)","v":0},{"$f":"IF(E87=\"Positive\",(IF(F87=\"Inconsequential\",6,IF(F87=\"Slightly important\",5,IF(F87=\"Important\",4,IF(F87=\"Very important\",3,IF(F87=\"Critical\",2)))))),(IF(F87=\"Inconsequential\",3,IF(F87=\"Slightly important\",2,IF(F87=\"Important\",1,IF(F87=\"Very important\",1,IF(F87=\"Critical\",0)))))))/6","v":1}]
[]
[]
[9,"Infraestructura de transporte y comunicación",null,null,"Puntuación máx. posible","Puntuación alcanzada"]
[{"$nulls":4},{"$f":"'ENTRADA_Ajuste de valoración'!F26","v":0},{"$f":"I93+I99","v":0}]
[null,"Preguntas","Fuentes de datos nacionales de muestra",null,"Respuesta","Relevancia",null,"Weight","Attained score","Raw Score"]
["a)","Transporte",{"$nulls":5},{"$f":"E91/COUNTA(B93,B99)","v":0},{"$f":"I94+I95+I97+I98+I96","v":0}]
["i)",{"$f":"\"¿Cómo es la calidad de la infraestructura del transporte aéreo?\"","v":"¿Cómo es la calidad de la infraestructura del transporte aéreo?"},"Datos de movilidad global \n",null,null,"Inconsequential",null,{"$f":"H93/COUNTA(B94:B98)","v":0},{"$f":"(J94*H94)","v":0},{"$f":"(IF(F94=\"Inconsequential\",3.5,E94))/7","v":0.5}]
["ii)",{"$f":"\"¿Cómo es la calidad de la infraestructura portuaria?\"","v":"¿Cómo es la calidad de la infraestructura portuaria?"},null,null,null,"Inconsequential",null,{"$f":"H93/COUNTA(B94:B98)","v":0},{"$f":"(J95*H95)","v":0},{"$f":"(IF(F95=\"Inconsequential\",3.5,E95))/7","v":0.5}]
["iii)",{"$f":"\"¿Cómo es la calidad de las autovías?\"","v":"¿Cómo es la calidad de las autovías?"},null,null,null,"Inconsequential",null,{"$f":"H93/COUNTA(B94:B98)","v":0},{"$f":"(J96*H96)","v":0},{"$f":"(IF(F96=\"Inconsequential\",3.5,E96))/7","v":0.5}]
["iv)",{"$f":"\"¿Cómo es la calidad de la infraestructura ferroviaria?\"","v":"¿Cómo es la calidad de la infraestructura ferroviaria?"},null,null,null,"Inconsequential",null,{"$f":"H93/COUNTA(B94:B98)","v":0},{"$f":"(J97*H97)","v":0},{"$f":"(IF(F97=\"Inconsequential\",3.5,E97))/7","v":0.5}]
["v)",{"$f":"\"¿Qué puntuación alcanzó el índice de rendimiento logístico en 2016?\"","v":"¿Qué puntuación alcanzó el índice de rendimiento logístico en 2016?"},"Índice de rendimiento logístico: calidad del comercio y la infraestructura relacionada con el transporte (1 = bajo a 5 = alto)",null,null,"Inconsequential",null,{"$f":"H93/COUNTA(B94:B98)","v":0},{"$f":"(J98*H98)","v":0},{"$f":"(IF(F98=\"Inconsequential\",2.5,E98))/5","v":0.5}]
["b)","Comunicación",{"$nulls":5},{"$f":"E91/COUNTA(B93,B99)","v":0},{"$f":"I100+I101+I102","v":0}]
["i)",{"$f":"\"¿Cuál es el número de suscripciones de telefonía móvil por cada 100 habitantes?\"","v":"¿Cuál es el número de suscripciones de telefonía móvil por cada 100 habitantes?"},"Unión Internacional de Telecomunicaciones, estadísticas globales del ICT Development Index (IDI)",null,null,"Inconsequential",null,{"$f":"H99/COUNTA(B100:B102)","v":0},{"$f":"(J100*H100)","v":0},{"$f":"(IF(F100=\"Inconsequential\",50,E100))/100","v":0.5}]
["i)",{"$f":"\"¿Cuál es el número de suscripciones activas de banda ancha móvil por cada 100 habitantes?\"","v":"¿Cuál es el número de suscripciones activas de banda ancha móvil por cada 100 habitantes?"},null,null,null,"Inconsequential",null,{"$f":"H99/COUNTA(B100:B102)","v":0},{"$f":"(J101*H101)","v":0},{"$f":"(IF(F101=\"Inconsequential\",50,E101))/100","v":0.5}]
["iii)",{"$f":"\"¿Cuál fue el valor general del Índice de Desarrollo ICT Development Index (IDI) en 2017?\"","v":"¿Cuál fue el valor general del Índice de Desarrollo ICT Development Index (IDI) en 2017?"},null,null,null,"Inconsequential",null,{"$f":"H99/COUNTA(B100:B102)","v":0},{"$f":"(J102*H102)","v":0},{"$f":"(IF(F102=\"Inconsequential\",5,E102))/10","v":0.5}]
[]
[]
[null,null,"¿Conoce fuentes de datos más recientes?"]
[null,null,"POR FAVOR COMPARTA"]
[null,null,"y ayúdenos a mejorar nuestras herramientas."]
[null,null,"Gracias"]

{"sheet":"SALIDA_Resultados","index":5,"n_rows":52,"n_cols":12,"rows_kept":52,"cut":false,"hidden":false,"merged":[[1,3,1,9],[51,1,51,12],[6,1,6,12],[3,2,3,3],[4,2,4,3],[3,6,3,7],[3,8,3,9],[4,6,4,7],[4,8,4,10],[8,1,8,4],[22,1,22,12],[8,7,8,12]]}
[]
[null,null,null,"SALIDA - Resultados de la Evaluación de Mercado"]
[]
[null,"País:",{"$f":"ENTRADA_Precontrol!D6","v":" Angola"},null,null,null,"Fecha de evaluación:","Fecha de evaluación:",{"$f":"ENTRADA_Precontrol!D8","v":"00:00:00"}]
[null,"Área de interés:",{"$f":"ENTRADA_Precontrol!D7","v":0},null,null,null,"Nombre del evaluador/a:","Nombre del evaluador:",{"$f":"ENTRADA_Precontrol!D9","v":0}]
[]
[null,"A. Potencial de Mercado para SPIS: Puntuaciones y Relevancias"]
[]
[null,"Puntuación Total (%)",{"$nulls":5},"Sinopsis de las Valoraciones de Relevancia"]
{"$rows_empty":13}
[null,"B. Potencial de Mercado para SPIS: Puntuación Total"]
[]
[]
[]
[{"$nulls":11},"Barreras de Mercado Altas"]
[{"$nulls":11},"Barreras de Mercado Bajas"]
[{"$nulls":11},"Fuerza de Mercado Baja"]
[{"$nulls":11},"Mayor Fuerza de Mercado "]
{"$rows_empty":21}
[null,"C. Potencial de Mercado de SPIS: Puntuación Comparada con el Ajuste de Valoración"]

{"sheet":"Calculations","index":6,"n_rows":36,"n_cols":7,"rows_kept":36,"cut":false,"hidden":true,"merged":[]}
[]
[]
[null,"Enabling SPIS Business Factors","Initial weight setting","Actually attained score ","Difference ",null,"Attained Score"]
[1,"Geophysical Parameters",{"$f":"'ENTRADA_Parámetros Geofísicos'!E6","v":5.5555555555555552E-2},{"$f":"'ENTRADA_Parámetros Geofísicos'!F6","v":5.1388888888888887E-2},{"$f":"C4-D4","v":4.1666666666666657E-3},{"$f":"100%-C4","v":0.94444444444444442},{"$f":"D4/C4","v":0.92500000000000004}]
[2,"Government interventions",{"$f":"'ENTRADA_Condiciones de Mercado'!E6","v":5.5555555555555552E-2},{"$f":"'ENTRADA_Condiciones de Mercado'!F6","v":5.5555555555555552E-2},{"$f":"C5-D5","v":0},{"$f":"100%-C5","v":0.94444444444444442},{"$f":"D5/C5","v":1}]
[3,"Development Organizations Interventions",{"$f":"'ENTRADA_Condiciones de Mercado'!E15","v":0.16666666666666666},{"$f":"'ENTRADA_Condiciones de Mercado'!F15","v":0.16666666666666666},{"$f":"C6-D6","v":0},{"$f":"100%-C6","v":0.83333333333333337},1]
[4,"Financing",{"$f":"'ENTRADA_Condiciones de Mercado'!E23","v":0.16666666666666666},{"$f":"'ENTRADA_Condiciones de Mercado'!F23","v":0.16666666666666666},0,0.83333333333333337,1]
[5,"Availability  and cost of alternative sources of power for pumping",{"$f":"'ENTRADA_Condiciones de Mercado'!E36","v":0.16666666666666666},{"$f":"'ENTRADA_Condiciones de Mercado'!F36","v":0.1111111111111111},5.5555555555555552E-2,0.83333333333333337,0.66666666666666663]
[6,"Technical capacity for SPIS",{"$f":"'ENTRADA_Condiciones de Mercado'!E54","v":0.27777777777777779},{"$f":"'ENTRADA_Condiciones de Mercado'!F54","v":0.23148148148148151},4.629629629629628E-2,0.72222222222222221,0.83333333333333337]
[7,"Awareness of solar PV and irrigation technologies ",{"$f":"'ENTRADA_Condiciones de Mercado'!E61","v":0},{"$f":"'ENTRADA_Condiciones de Mercado'!F61","v":0},0,1,{"$error":"#DIV/0!"}]
[8,"Significance of agriculture in the local economy",{"$f":"'ENTRADA_Condiciones de Mercado'!E72","v":0.1111111111111111},{"$f":"'ENTRADA_Condiciones de Mercado'!F72","v":5.5555555555555552E-2},5.5555555555555552E-2,0.88888888888888884,0.5]
[9,"Land use rights, ownership and tenure ",{"$f":"'ENTRADA_Condiciones de Mercado'!E81","v":0},{"$f":"'ENTRADA_Condiciones de Mercado'!F81","v":0},0,1,{"$error":"#DIV/0!"}]
[10,"Transportation and communication infrastructure ",{"$f":"'ENTRADA_Condiciones de Mercado'!E91","v":0},{"$f":"'ENTRADA_Condiciones de Mercado'!F91","v":0},0,1,{"$error":"#DIV/0!"}]
[null,null,{"$f":"SUM(C4:C13)","v":1},{"$f":"SUM(D4:D13)","v":0.83842592592592602},{"$f":"C14-D14","v":0.16157407407407398}]
[]
[]
[]
[]
[]
[]
[null,"GEOPHYSICAL Parameters "]
[null,null,"Doughnut","Pie"]
[null,"Red Zone",30,{"$f":"IF(ENTRADA_Precontrol!T14=0,10, IF(ENTRADA_Precontrol!T14=1,7, IF(ENTRADA_Precontrol!T14=2,14, IF(ENTRADA_Precontrol!T14=3,21, IF(ENTRADA_Precontrol!T14=4,30, IF(ENTRADA_Precontrol!T14=5,45, IF(ENTRADA_Precontrol!T14=6,60, IF(ENTRADA_Precontrol!T14=7,75, IF(ENTRADA_Precontrol!T14=8,100,115)))))))))","v":75},"Value"]
[null,"Orange Zone",30,1,"Ticker"]
[null,"Yellow Zone",30,{"$f":"240-D23-D24","v":164},"Rest Value"]
[null,"Green Zone",30]
[null,"Hidden Zone",120]
[]
[]
[null,"Relevance","Business","Geophysical","Total"]
[null,"Inconsequential",{"$f":"(COUNTIF('ENTRADA_Condiciones de Mercado'!$F$8:$F$102,Calculations!B31))/44","v":0.86363636363636365},{"$f":"(COUNTIF('ENTRADA_Parámetros Geofísicos'!$F$8:$F$11,Calculations!B31))/44","v":9.0909090909090912E-2},{"$f":"SUM(C31:D31)","v":0.95454545454545459}]
[null,"Slightly important",{"$f":"(COUNTIF('ENTRADA_Condiciones de Mercado'!$F$8:$F$102,Calculations!B32))/44","v":0},{"$f":"(COUNTIF('ENTRADA_Parámetros Geofísicos'!$F$8:$F$11,Calculations!B32))/44","v":0},{"$f":"SUM(C32:D32)","v":0}]
[null,"Important",{"$f":"(COUNTIF('ENTRADA_Condiciones de Mercado'!$F$8:$F$102,Calculations!B33))/44","v":4.5454545454545456E-2},{"$f":"(COUNTIF('ENTRADA_Parámetros Geofísicos'!$F$8:$F$11,Calculations!B33))/44","v":0},{"$f":"SUM(C33:D33)","v":4.5454545454545456E-2}]
[null,"Very important",{"$f":"(COUNTIF('ENTRADA_Condiciones de Mercado'!$F$8:$F$102,Calculations!B34))/44","v":0},{"$f":"(COUNTIF('ENTRADA_Parámetros Geofísicos'!$F$8:$F$11,Calculations!B34))/44","v":0},{"$f":"SUM(C34:D34)","v":0}]
[null,"Critical",{"$f":"(COUNTIF('ENTRADA_Condiciones de Mercado'!$F$8:$F$102,Calculations!B35))/44","v":0},{"$f":"(COUNTIF('ENTRADA_Parámetros Geofísicos'!$F$8:$F$11,Calculations!B35))/44","v":0},{"$f":"SUM(C35:D35)","v":0}]
[null,null,{"$f":"SUM(C31:C35)","v":0.90909090909090906},{"$f":"SUM(D31:D35)","v":9.0909090909090912E-2},{"$f":"SUM(E31:E35)","v":1}]

{"sheet":"Traducción","index":7,"n_rows":86,"n_cols":3,"rows_kept":86,"cut":false,"hidden":false,"merged":[[1,0,1,2],[4,0,4,4]]}
[]
["HOJA DE TRADUCCIÓN "]
[]
["Introducción"]
["Algunas partes del texto usado en esta herramienta forman parte de fórmulas basadas en reconocimento de texto. Para mantener la integridad y el funcionamiento de las fórmulas, dichos fragmentos permanecerán en inglés. Una lista de los fragmentos de texto y su traducción correspondiente ha sido compilada en esta hoja de traducción complementaria:"]
["Texto original en inglés","Hoja","Traducción al español"]
["1C to 30C","INPUT_Geophysical Parameters","Entre 1ºC y 30ºC"]
["Actually attained score","OUTPUT_Result","Puntuación obtenida realmente"]
["Additional Geophysical Parameters ","INPUT_Weight setting","Parámetros geofísicos adicionales"]
["Additional Geophysical Parameters ","OUTPUT_Result","Parámetros geofísicos adicionales"]
["Availability and Cost of Alternatives","INPUT_Weight setting","Disponibilidad y costo de alternativas"]
["Availability and Cost of Alternatives","OUTPUT_Result","Disponibilidad y costo de alternativas"]
["Awareness of Solar PV and Irrigation Tecnologies","INPUT_Weight setting","Conocimiento de las Tecnologías SPIS"]
["Awareness of Solar PV and Irrigation Tecnologies","OUTPUT_Result","Conocimiento de las Tecnologías SPIS"]
["Bare areas (sand dunes, gravel plains, etc)","INPUT_Pre-check","Áreas sin vegetación (dunas de arena, llanuras de grava, etc.) "]
["Below 1C","INPUT_Geophysical Parameters","Por debajo de 1ºC"]
["Beyond 100 m","INPUT_Geophysical Parameters","Más allá de 100 m"]
["Critical","various sheets","Crítico/a"]
["Critical Geophysical Parameters NOT IDEAL for SPIS","INPUT_Pre-check","Parámetros geofísicos críticos - NO IDEAL para SPIS"]
["Cropland irrigated or post-flooding","INPUT_Pre-check","Tierras de cultivo irrigadas o posteriores a las inundaciones"]
["Cropland, rainfed","INPUT_Pre-check","Tierras de cultivo, secano"]
["Dense forest closed (tree cover above 40%)","INPUT_Pre-check","Bosque denso (cobertura arbórea superior al 40%)"]
["Development Organizations Interventions","INPUT_Weight setting","Intervenciones de organizaciones de desarrollo"]
["Development Organizations Interventions","OUTPUT_Result","Intervenciones de organizaciones de desarrollo"]
["Financing","INPUT_Weight setting","Financiación"]
["Financing","OUTPUT_Result","Financiación"]
["Flat","INPUT_Geophysical Parameters","Plano"]
["Flood plains brackish water","INPUT_Pre-check","Inundaciones, llanuras, agua salobre"]
["Flood plains fresh water","INPUT_Pre-check","Inundaciones, llanuras, agua dulce"]
["Geophysical Parameters","OUTPUT_Result","Parámetros geofísicos"]
["Government Interventions","INPUT_Weight setting","Intervenciones del gobierno"]
["Government Interventions","OUTPUT_Result","Intervenciones del gobierno"]
["Grassland","INPUT_Pre-check","Pradera"]
["High","INPUT_Business Conditions","Alto"]
["High Income ($12.236 or more)","INPUT_Business Conditions","Ingresos altos (mayores que 12.236 dólares)"]
["Highly Suitable","INPUT_Pre-check","Muy adecuado"]
["Ignore","various sheets","Ignorar"]
["Important","various sheets","Importante"]
["Inconsequential","various sheets","Inconsecuente"]
["Initial weight setting","OUTPUT_Result","Ajuste de valoración inicial"]
["Land Tenure","INPUT_Weight setting","Tenencia de tierras"]
["Land Tenure","OUTPUT_Result","Tenencia de tierras"]
["Large Livestock","INPUT_Geophysical Parameters","Ganado grande"]
["Lichens and mosses","INPUT_Pre-check","Líquenes y musgos"]
["Light forest open (tree cover up to 40%)","INPUT_Pre-check","Bosque claro (cobertura de árboles hasta 40%)"]
["Livestock and Crops","INPUT_Geophysical Parameters","Ganadería y cultivos"]
["Low","INPUT_Business Conditions","Bajo"]
["Low income ($1,005 or less)","INPUT_Business Conditions","Ingresos bajos ($1,005 o menos)"]
["Lower Middle Income ($1,006 to $3,955)","INPUT_Business Conditions","Ingresos medio bajos (entre $1,006 y $3,955)"]
["Marginally Suitable","INPUT_Pre-check","Marginalmente adecuado"]
["Medium forest open to closed (tree cover above 40%)","INPUT_Pre-check","Bosque medio abierto a cerrado (cobertura arbórea por encima de 40%)"]
["Moderate","INPUT_Geophysical Parameters","Moderado"]
["Moderately Suitable","INPUT_Pre-check","Moderadamente adecuado"]
["Mosaic crop land with natural vegetation","INPUT_Pre-check","Tierra de cultivos de mosaico con vegetación natural"]
["Negative","INPUT_Business Conditions","Negativo"]
["No","various sheets","No"]
["Not Suitable","INPUT_Pre-check","No adecuado"]
["Perennial Crops","INPUT_Geophysical Parameters","Cultivos perennes"]
["Permanent snow and ice","INPUT_Pre-check","Nieve y hielo"]
["Positive","INPUT_Business Conditions","Positivo"]
["Proceed to INPUT_Weight Setting","INPUT_Pre-check","Proceda a ENTRADA_Ajuste de Valoración"]
["Regular","INPUT_Business Conditions","Regular"]
["Seasonal and Perennial Crops","INPUT_Geophysical Parameters","Cultivos estacionales y perennes"]
["Seasonal Crops","INPUT_Geophysical Parameters","Cultivos estacionales"]
["Semi arid sparse vegetation","INPUT_Pre-check","Vegetación escasa semi-árida "]
["Shrubland","INPUT_Pre-check","Matorral"]
["Significance of Agriculture to the Local Economy","INPUT_Weight setting","Importancia de la agricultura para la economía local"]
["Significance of Agriculture to the Local Economy","OUTPUT_Result","Importancia de la agricultura para la economía local"]
["Slightly important","various sheets","Ligeramente importante"]
["Small Livestock","INPUT_Geophysical Parameters","Ganado pequeño"]
["SPIS Suitability","INPUT_Pre-check","Aptitud de SPIS"]
["Steep","INPUT_Geophysical Parameters","Empinado"]
["Technical Capacity","INPUT_Weight setting","Capacidad técnica"]
["Technical Capacity","OUTPUT_Result","Capacidad técnica"]
["Transport and Communication Infrastructure","INPUT_Weight setting","Transporte e infraestructura de comunicación"]
["Transport and Communication Infrastructure","OUTPUT_Result","Transporte e infraestructura de comunicación"]
["Unknown","various sheets","Desconocido"]
["Unknown","INPUT_Business Conditions","Desconocido"]
["Up to 7 m ","INPUT_Geophysical Parameters","Hasta 7 m"]
["Upper Middle Income ($3,956 to $12,235)","INPUT_Business Conditions","Ingresos medio altos (entre $3,956 y $12,235)"]
["Urban areas","INPUT_Pre-check","Áreas urbanas "]
["Very High","INPUT_Business Conditions","Muy alto"]
["Very important","various sheets","Muy importante"]
["Water bodies","INPUT_Pre-check","Cuerpos de agua"]
["Weight Setting","INPUT_Weight setting","Ajuse de valoración"]
["Yes","various sheets","Sí"]

{"sheet":"Lists","index":8,"n_rows":241,"n_cols":7,"rows_kept":241,"cut":false,"hidden":true,"merged":[]}
["Countries","Development Agencies","Facilitites and Funds","Other NGOs, Foundations","Rural MPI","GNI per Capita","pump manufacturers"]
["Afghanistan","African Development Bank","CTF (Clean Technology Fund)","AAA (Adaptation of African Agriculture)","0.10 - 1.86","Low income ($1,005 or less)","AllightSykes"]
[" Albania","CGIAR (Climate Change, Agriculture and Food Security)","EcoMicro","AGRA","1.87 - 8.80","Lower Middle Income ($1,006 to $3,955)","Ebara"]
[" Algeria","DFID ( Department for International Development - United Kingdom)","GEF (Global Environment Facility)","Energy 4Impact","8.81 - 26.06","Upper Middle Income ($3,956 to $12,235)","Flowserve"]
[" American Samoa","FAO (Food and Agriculture Organization) ","GPOBA (Global Partnershi on Output Based Aid)","IFPRI (International Food Policy Research Institute)","26.07 - 48.54","High Income ($12.236 or more)","Grundfos"]
[" Andorra","GACSA (Global Alliance For Climate-Smart Agriculture)","ICBA","Lutheran World Relief","48.55 - 68.29",null,"Kirloskar Brothers Lt"]
[" Angola","GIZ (Deutsche Gesellschaft für Internationale Zusammenarbeit GmbH)","ICBA (International Center for Biosaline Agriculture)","The Practica Foundation","68.30 - 84.33",null,"KSB"]
[" Anguilla","IFAD (International Fund for Agriculture Development)",null,null,"84.34 - 96.90",null,"Lorentz"]
[" Antarctica","JICA (Japan International Cooperation Agency)",null,null,"No data",null,"Ruhrpumpen Group"]
[" Antigua and Barbuda","Nordic Development Fund",{"$nulls":4},"Suzler Ltd"]
[" Argentina","OECD (Organisation for Economic Co-operation and Development)",{"$nulls":4},"Weir Group"]
[" Armenia","OFID (OPEC Fund for International Development)",{"$nulls":4},"Wilo SE"]
[" Aruba","SIDA (Swedish International Development Cooperation Agency)",{"$nulls":4},"Xylem"]
[" Australia","USAID"]
[" Austria","World Bank Group"]
[" Azerbaijan","World Food Programme"]
[" Bahamas"]
[" Bahrain"]
[" Bangladesh"]
[" Barbados"]
[" Belarus"]
[" Belgium"]
[" Belize"]
[" Benin"]
[" Bermuda"]
[" Bhutan"]
[" Bolivia"]
[" Bosnia and Herzegovina"]
[" Botswana"]
[" Bouvet Island"]
[" Brazil"]
[" British Indian Ocean Territory"]
[" Brunei Darussalam"]
[" Bulgaria"]
[" Burkina Faso"]
[" Burundi"]
[" Cambodia"]
[" Cameroon"]
[" Canada"]
[" Cape Verde"]
[" Cayman Islands"]
[" Central African Republic"]
[" Chad"]
[" Chile"]
[" China"]
[" Christmas Island"]
[" Cocos (Keeling Islands)"]
[" Colombia"]
[" Comoros"]
[" Congo"]
[" Cook Islands"]
[" Costa Rica"]
[" Cote D'Ivoire (Ivory Coast)"]
[" Croatia (Hrvatska"]
[" Cuba"]
[" Cyprus"]
[" Czech Republic"]
[" Denmark"]
[" Djibouti"]
[" Dominica"]
[" Dominican Republic"]
[" East Timor"]
[" Ecuador"]
[" Egypt"]
[" El Salvador"]
[" Equatorial Guinea"]
[" Eritrea"]
[" Estonia"]
[" Ethiopia"]
[" Falkland Islands (Malvinas)"]
[" Faroe Islands"]
[" Fiji"]
[" Finland"]
[" France"]
[" France"]
[" Metropolitan"]
[" French Guiana"]
[" French Polynesia"]
[" French Southern Territories"]
[" Gabon"]
[" Gambia"]
[" Georgia"]
[" Germany"]
[" Ghana"]
[" Gibraltar"]
[" Greece"]
[" Greenland"]
[" Grenada"]
[" Guadeloupe"]
[" Guam"]
[" Guatemala"]
[" Guinea"]
[" Guinea-Bissau"]
[" Guyana"]
[" Haiti"]
[" Heard and McDonald Islands"]
[" Honduras"]
[" Hong Kong"]
[" Hungary"]
[" Iceland"]
[" India"]
[" Indonesia"]
[" Iran"]
[" Iraq"]
[" Ireland"]
[" Israel"]
[" Italy"]
[" Jamaica"]
[" Japan"]
[" Jordan"]
[" Kazakhstan"]
[" Kenya"]
[" Kiribati"]
[" Korea (North)"]
[" Korea (South)"]
[" Kuwait"]
[" Kyrgyzstan"]
[" Laos"]
[" Latvia"]
[" Lebanon"]
[" Lesotho"]
[" Liberia"]
[" Libya"]
[" Liechtenstein"]
[" Lithuania"]
[" Luxembourg"]
[" Macau"]
[" Macedonia"]
[" Madagascar"]
[" Malawi"]
[" Malaysia"]
[" Maldives"]
[" Mali"]
[" Malta"]
[" Marshall Islands"]
[" Martinique"]
[" Mauritania"]
[" Mauritius"]
[" Mayotte"]
[" Mexico"]
[" Micronesia"]
[" Moldova"]
[" Monaco"]
[" Mongolia"]
[" Montserrat"]
[" Morocco"]
[" Mozambique"]
[" Myanmar"]
[" Namibia"]
[" Nauru"]
[" Nepal"]
[" Netherlands"]
[" Netherlands Antilles"]
[" New Caledonia"]
[" New Zealand"]
[" Nicaragua"]
[" Niger"]
[" Nigeria"]
[" Niue"]
[" Norfolk Island"]
[" Northern Mariana Islands"]
[" Norway"]
[" Oman"]
[" Pakistan"]
[" Palau"]
[" Panama"]
[" Papua New Guinea"]
[" Paraguay"]
[" Peru"]
[" Philippines"]
[" Pitcairn"]
[" Poland"]
[" Portugal"]
[" Puerto Rico"]
[" Qatar"]
[" Reunion"]
[" Romania"]
[" Russian Federation"]
[" Rwanda"]
[" Saint Kitts and Nevis"]
[" Saint Lucia"]
[" Saint Vincent and The Grenadines"]
[" Samoa"]
[" San Marino"]
[" Sao Tome and Principe"]
[" Saudi Arabia"]
[" Senegal"]
[" Seychelles"]
[" Sierra Leone"]
[" Singapore"]
[" Slovak Republic"]
[" Slovenia"]
[" Solomon Islands"]
[" Somalia"]
[" South Africa"]
[" S. Georgia and S. Sandwich Isls."]
[" Spain"]
[" Sri Lanka"]
[" St. Helena"]
[" St. Pierre and Miquelon"]
[" Sudan"]
[" Suriname"]
[" Svalbard and Jan Mayen Islands"]
[" Swaziland"]
[" Sweden"]
[" Switzerland"]
[" Syria"]
[" Taiwan"]
[" Tajikistan"]
[" Tanzania"]
[" Thailand"]
[" Togo"]
[" Tokelau"]
[" Tonga"]
[" Trinidad and Tobago"]
[" Tunisia"]
[" Turkey"]
[" Turkmenistan"]
[" Turks and Caicos Islands"]
[" Tuvalu"]
[" Uganda"]
[" Ukraine"]
[" United Arab Emirates"]
[" United Kingdom (Britain / UK)"]
[" United States of America (USA)"]
[" US Minor Outlying Islands"]
[" Uruguay"]
[" Uzbekistan"]
[" Vanuatu"]
[" Vatican City State (Holy See)"]
[" Venezuela"]
[" Viet Nam"]
[" Virgin Islands (British)"]
[" Virgin Islands (US)"]
[" Wallis and Futuna Islands"]
[" Western Sahara"]
[" Yemen"]
[" Yugoslavia"]
[" Zaire"]
[" Zambia"]
[" Zimbabwe"]

{"sheet":"Lists 2","index":9,"n_rows":241,"n_cols":16,"rows_kept":241,"cut":false,"hidden":true,"merged":[]}
["Column1","Column2","Column3","Column4","Column1",null,null,"Solar Ranges",null,"Groundwater Depth",null,"Topography",null,"Ambient temperature",null,"Population Density"]
["Cropland, rainfed","Highly Suitable",null,null," Afghanistan",null,null,"0 - 948",null,"Up to 7m",null,"Mountainous",null,"Below 1C",null,"<1"]
["Cropland irrigated or post-flooding","Highly Suitable",null,null," Albania",null,null,"949 - 1094",null,"7m - 25m",null,"Steep hills",null,"1C to 30C",null,"1 - 5"]
["Mosaic crop land with natural vegetation","Highly Suitable",null,null," Algeria",null,null,"1095 - 1460",null,"25m - 50m",null,"Rolling hills",null,null,null,"5 - 25"]
["Light forest open (tree cover up to 40%)","Moderately Suitable",null,null," American Samoa",null,null,"Above 1460",null,"50m - 100m",null,"Level",null,null,null,"25 - 250"]
["Medium forest open to closed (tree cover above 40%)","Marginally Suitable",null,null," Andorra",{"$nulls":4},"Beyond 100m",null,"Mixed various",null,null,null,"250 - 1000"]
["Dense forest closed (tree cover above 40%)","Not Suitable",null,null," Angola",{"$nulls":4},"Unknown",{"$nulls":5},">1000"]
["Shrubland","Moderately Suitable",null,null," Anguilla"]
["Grassland","Moderately Suitable",null,null," Antarctica"]
["Lichens and mosses","Marginally Suitable",null,null," Antigua and Barbuda"]
["Semi arid sparse vegetation","Moderately Suitable",null,null," Argentina"]
["Flood plains fresh water","Marginally Suitable",null,null," Armenia"]
["Flood plains brackish water","Not Suitable",null,null," Aruba"]
["Urban areas","Not Suitable",null,null," Australia"]
["Bare areas (sand dunes, gravel plains, etc)","Marginally Suitable",null,null," Austria"]
["Water bodies","Not Suitable",null,null," Azerbaijan"]
["Permanent snow and ice","Not Suitable",null,null," Bahamas"]
[{"$nulls":4}," Bahrain"]
[{"$nulls":4}," Bangladesh"]
[{"$nulls":4}," Barbados"]
[{"$nulls":4}," Belarus"]
[{"$nulls":4}," Belgium"]
[{"$nulls":4}," Belize"]
[{"$nulls":4}," Benin"]
[{"$nulls":4}," Bermuda"]
[{"$nulls":4}," Bhutan"]
[{"$nulls":4}," Bolivia"]
[{"$nulls":4}," Bosnia and Herzegovina"]
[{"$nulls":4}," Botswana"]
[{"$nulls":4}," Bouvet Island"]
[{"$nulls":4}," Brazil"]
[{"$nulls":4}," British Indian Ocean Territory"]
[{"$nulls":4}," Brunei Darussalam"]
[{"$nulls":4}," Bulgaria"]
[{"$nulls":4}," Burkina Faso"]
[{"$nulls":4}," Burundi"]
[{"$nulls":4}," Cambodia"]
[{"$nulls":4}," Cameroon"]
[{"$nulls":4}," Canada"]
[{"$nulls":4}," Cape Verde"]
[{"$nulls":4}," Cayman Islands"]
[{"$nulls":4}," Central African Republic"]
[{"$nulls":4}," Chad"]
[{"$nulls":4}," Chile"]
[{"$nulls":4}," China"]
[{"$nulls":4}," Christmas Island"]
[{"$nulls":4}," Cocos (Keeling Islands)"]
[{"$nulls":4}," Colombia"]
[{"$nulls":4}," Comoros"]
[{"$nulls":4}," Congo"]
[{"$nulls":4}," Cook Islands"]
[{"$nulls":4}," Costa Rica"]
[{"$nulls":4}," Cote D'Ivoire (Ivory Coast)"]
[{"$nulls":4}," Croatia (Hrvatska"]
[{"$nulls":4}," Cuba"]
[{"$nulls":4}," Cyprus"]
[{"$nulls":4}," Czech Republic"]
[{"$nulls":4}," Denmark"]
[{"$nulls":4}," Djibouti"]
[{"$nulls":4}," Dominica"]
[{"$nulls":4}," Dominican Republic"]
[{"$nulls":4}," East Timor"]
[{"$nulls":4}," Ecuador"]
[{"$nulls":4}," Egypt"]
[{"$nulls":4}," El Salvador"]
[{"$nulls":4}," Equatorial Guinea"]
[{"$nulls":4}," Eritrea"]
[{"$nulls":4}," Estonia"]
[{"$nulls":4}," Ethiopia"]
[{"$nulls":4}," Falkland Islands (Malvinas)"]
[{"$nulls":4}," Faroe Islands"]
[{"$nulls":4}," Fiji"]
[{"$nulls":4}," Finland"]
[{"$nulls":4}," France"]
[{"$nulls":4}," France"]
[{"$nulls":4}," Metropolitan"]
[{"$nulls":4}," French Guiana"]
[{"$nulls":4}," French Polynesia"]
[{"$nulls":4}," French Southern Territories"]
[{"$nulls":4}," Gabon"]
[{"$nulls":4}," Gambia"]
[{"$nulls":4}," Georgia"]
[{"$nulls":4}," Germany"]
[{"$nulls":4}," Ghana"]
[{"$nulls":4}," Gibraltar"]
[{"$nulls":4}," Greece"]
[{"$nulls":4}," Greenland"]
[{"$nulls":4}," Grenada"]
[{"$nulls":4}," Guadeloupe"]
[{"$nulls":4}," Guam"]
[{"$nulls":4}," Guatemala"]
[{"$nulls":4}," Guinea"]
[{"$nulls":4}," Guinea-Bissau"]
[{"$nulls":4}," Guyana"]
[{"$nulls":4}," Haiti"]
[{"$nulls":4}," Heard and McDonald Islands"]
[{"$nulls":4}," Honduras"]
[{"$nulls":4}," Hong Kong"]
[{"$nulls":4}," Hungary"]
[{"$nulls":4}," Iceland"]
[{"$nulls":4}," India"]
[{"$nulls":4}," Indonesia"]
[{"$nulls":4}," Iran"]
[{"$nulls":4}," Iraq"]
[{"$nulls":4}," Ireland"]
[{"$nulls":4}," Israel"]
[{"$nulls":4}," Italy"]
[{"$nulls":4}," Jamaica"]
[{"$nulls":4}," Japan"]
[{"$nulls":4}," Jordan"]
[{"$nulls":4}," Kazakhstan"]
[{"$nulls":4}," Kenya"]
[{"$nulls":4}," Kiribati"]
[{"$nulls":4}," Korea (North)"]
[{"$nulls":4}," Korea (South)"]
[{"$nulls":4}," Kuwait"]
[{"$nulls":4}," Kyrgyzstan"]
[{"$nulls":4}," Laos"]
[{"$nulls":4}," Latvia"]
[{"$nulls":4}," Lebanon"]
[{"$nulls":4}," Lesotho"]
[{"$nulls":4}," Liberia"]
[{"$nulls":4}," Libya"]
[{"$nulls":4}," Liechtenstein"]
[{"$nulls":4}," Lithuania"]
[{"$nulls":4}," Luxembourg"]
[{"$nulls":4}," Macau"]
[{"$nulls":4}," Macedonia"]
[{"$nulls":4}," Madagascar"]
[{"$nulls":4}," Malawi"]
[{"$nulls":4}," Malaysia"]
[{"$nulls":4}," Maldives"]
[{"$nulls":4}," Mali"]
[{"$nulls":4}," Malta"]
[{"$nulls":4}," Marshall Islands"]
[{"$nulls":4}," Martinique"]
[{"$nulls":4}," Mauritania"]
[{"$nulls":4}," Mauritius"]
[{"$nulls":4}," Mayotte"]
[{"$nulls":4}," Mexico"]
[{"$nulls":4}," Micronesia"]
[{"$nulls":4}," Moldova"]
[{"$nulls":4}," Monaco"]
[{"$nulls":4}," Mongolia"]
[{"$nulls":4}," Montserrat"]
[{"$nulls":4}," Morocco"]
[{"$nulls":4}," Mozambique"]
[{"$nulls":4}," Myanmar"]
[{"$nulls":4}," Namibia"]
[{"$nulls":4}," Nauru"]
[{"$nulls":4}," Nepal"]
[{"$nulls":4}," Netherlands"]
[{"$nulls":4}," Netherlands Antilles"]
[{"$nulls":4}," New Caledonia"]
[{"$nulls":4}," New Zealand"]
[{"$nulls":4}," Nicaragua"]
[{"$nulls":4}," Niger"]
[{"$nulls":4}," Nigeria"]
[{"$nulls":4}," Niue"]
[{"$nulls":4}," Norfolk Island"]
[{"$nulls":4}," Northern Mariana Islands"]
[{"$nulls":4}," Norway"]
[{"$nulls":4}," Oman"]
[{"$nulls":4}," Pakistan"]
[{"$nulls":4}," Palau"]
[{"$nulls":4}," Panama"]
[{"$nulls":4}," Papua New Guinea"]
[{"$nulls":4}," Paraguay"]
[{"$nulls":4}," Peru"]
[{"$nulls":4}," Philippines"]
[{"$nulls":4}," Pitcairn"]
[{"$nulls":4}," Poland"]
[{"$nulls":4}," Portugal"]
[{"$nulls":4}," Puerto Rico"]
[{"$nulls":4}," Qatar"]
[{"$nulls":4}," Reunion"]
[{"$nulls":4}," Romania"]
[{"$nulls":4}," Russian Federation"]
[{"$nulls":4}," Rwanda"]
[{"$nulls":4}," Saint Kitts and Nevis"]
[{"$nulls":4}," Saint Lucia"]
[{"$nulls":4}," Saint Vincent and The Grenadines"]
[{"$nulls":4}," Samoa"]
[{"$nulls":4}," San Marino"]
[{"$nulls":4}," Sao Tome and Principe"]
[{"$nulls":4}," Saudi Arabia"]
[{"$nulls":4}," Senegal"]
[{"$nulls":4}," Seychelles"]
[{"$nulls":4}," Sierra Leone"]
[{"$nulls":4}," Singapore"]
[{"$nulls":4}," Slovak Republic"]
[{"$nulls":4}," Slovenia"]
[{"$nulls":4}," Solomon Islands"]
[{"$nulls":4}," Somalia"]
[{"$nulls":4}," South Africa"]
[{"$nulls":4}," S. Georgia and S. Sandwich Isls."]
[{"$nulls":4}," Spain"]
[{"$nulls":4}," Sri Lanka"]
[{"$nulls":4}," St. Helena"]
[{"$nulls":4}," St. Pierre and Miquelon"]
[{"$nulls":4}," Sudan"]
[{"$nulls":4}," Suriname"]
[{"$nulls":4}," Svalbard and Jan Mayen Islands"]
[{"$nulls":4}," Swaziland"]
[{"$nulls":4}," Sweden"]
[{"$nulls":4}," Switzerland"]
[{"$nulls":4}," Syria"]
[{"$nulls":4}," Taiwan"]
[{"$nulls":4}," Tajikistan"]
[{"$nulls":4}," Tanzania"]
[{"$nulls":4}," Thailand"]
[{"$nulls":4}," Togo"]
[{"$nulls":4}," Tokelau"]
[{"$nulls":4}," Tonga"]
[{"$nulls":4}," Trinidad and Tobago"]
[{"$nulls":4}," Tunisia"]
[{"$nulls":4}," Turkey"]
[{"$nulls":4}," Turkmenistan"]
[{"$nulls":4}," Turks and Caicos Islands"]
[{"$nulls":4}," Tuvalu"]
[{"$nulls":4}," Uganda"]
[{"$nulls":4}," Ukraine"]
[{"$nulls":4}," United Arab Emirates"]
[{"$nulls":4}," United Kingdom (Britain / UK)"]
[{"$nulls":4}," United States of America (USA)"]
[{"$nulls":4}," US Minor Outlying Islands"]
[{"$nulls":4}," Uruguay"]
[{"$nulls":4}," Uzbekistan"]
[{"$nulls":4}," Vanuatu"]
[{"$nulls":4}," Vatican City State (Holy See)"]
[{"$nulls":4}," Venezuela"]
[{"$nulls":4}," Viet Nam"]
[{"$nulls":4}," Virgin Islands (British)"]
[{"$nulls":4}," Virgin Islands (US)"]
[{"$nulls":4}," Wallis and Futuna Islands"]
[{"$nulls":4}," Western Sahara"]
[{"$nulls":4}," Yemen"]
[{"$nulls":4}," Yugoslavia"]
[{"$nulls":4}," Zaire"]
[{"$nulls":4}," Zambia"]
[{"$nulls":4}," Zimbabwe"]